bitfinex/quotes_BTCUSD_20250102
["timestamp","ask_amount","ask_price","bid_price","bid_amount"]
[1735840351925,0.00034729,96649.0,96648.0,2.94313532]
[1735840352180,0.00034729,96649.0,96648.0,3.04613532]
[1735840352896,0.00034729,96649.0,96648.0,3.05213532]
[1735840353393,0.00034729,96649.0,96648.0,2.73705932]
[1735840353636,0.00034729,96649.0,96648.0,2.37392232]
[1735840353891,0.00034729,96649.0,96648.0,2.50832532]
[1735840354128,0.00034729,96649.0,96648.0,2.61278847]
[1735840354373,0.00034729,96649.0,96648.0,2.49038647]
[1735840354620,0.00034729,96649.0,96648.0,2.58938647]
[1735840355265,0.00034729,96649.0,96648.0,2.49838647]
[1735840355646,0.00034729,96649.0,96648.0,2.59838647]
[1735840355894,0.00034729,96649.0,96648.0,2.39238547]
[1735840356361,0.00043269,96649.0,96648.0,2.64106147]
[1735840356850,0.00043269,96649.0,96648.0,2.49238547]
[1735840357333,0.00043269,96649.0,96648.0,2.68131547]
[1735840357977,0.00043269,96649.0,96648.0,2.78131547]
[1735840357978,6.9e-07,96649.0,96648.0,2.78131547]
[1735840358208,6.9e-07,96649.0,96648.0,2.61538547]
[1735840359692,6.9e-07,96649.0,96648.0,2.59238547]
[1735840363970,6.9e-07,96649.0,96648.0,2.61538547]
[1735840367121,6.9e-07,96649.0,96648.0,2.61038547]
[1735840367326,6.9e-07,96649.0,96648.0,2.61538547]
[1735840367527,6.9e-07,96649.0,96648.0,2.60638547]
[1735840367737,6.9e-07,96649.0,96648.0,2.61038547]
[1735840368208,0.00100069,96649.0,96648.0,2.60238547]
[1735840368426,0.00100069,96649.0,96648.0,2.60338547]
[1735840368626,0.00100069,96649.0,96648.0,2.60238547]
[1735840368827,0.00100069,96649.0,96648.0,7.30455347]
[1735840369062,0.00100069,96649.0,96648.0,7.23616547]
[1735840369479,6.9e-07,96649.0,96648.0,7.23516547]
[1735840369685,6.9e-07,96649.0,96648.0,2.60238547]
[1735840369879,6.9e-07,96649.0,96648.0,2.60338547]
[1735840370543,6.9e-07,96649.0,96648.0,2.58038547]
[1735840370960,6.9e-07,96649.0,96648.0,2.38038547]
[1735840371178,6.9e-07,96649.0,96648.0,2.23038547]
[1735840371398,6.9e-07,96649.0,96648.0,2.13038547]
[1735840371612,0.07910069,96649.0,96648.0,1.502]
[1735840371821,0.12420069,96649.0,96648.0,1.502]
[1735840372680,0.12420069,96649.0,96648.0,1.5]
[1735840373122,0.13220069,96649.0,96648.0,1.501]
[1735840373555,0.12420069,96649.0,96648.0,1.5]
[1735840374192,0.12520069,96649.0,96648.0,1.509]
[1735840374429,0.12520069,96649.0,96648.0,1.51]
[1735840374645,0.12420069,96649.0,96648.0,1.501]
[1735840375371,0.12720069,96649.0,96648.0,1.501]
[1735840375821,0.12720069,96649.0,96648.0,1.5]
[1735840376242,0.12820069,96649.0,96648.0,1.5]
[1735840380950,0.12820069,96649.0,96648.0,1.70415712]
[1735840381807,0.12820069,96649.0,96648.0,1.5001708]
[1735840382407,0.33513469,96649.0,96648.0,1.5001708]
[1735840384029,0.12820069,96649.0,96648.0,1.5001708]
[1735840387135,0.33513469,96649.0,96648.0,1.5001708]
[1735840387341,0.33513469,96649.0,96648.0,0.0001708]
[1735840389507,0.35813469,96649.0,96648.0,0.0001708]
[1735840389734,0.0772,96640.0,96639.0,0.0001708]
[1735840389949,0.0772,96640.0,96639.0,0.10415712]
[1735840390179,0.04910069,96649.0,96647.0,0.1]
[1735840390391,0.00400069,96649.0,96648.0,0.31092232]
[1735840390702,6.9e-07,96649.0,96648.0,0.31092232]
[1735840390910,6.9e-07,96649.0,96648.0,1.81092232]
[1735840391826,6.9e-07,96649.0,96648.0,1.81292232]
[1735840392802,6.9e-07,96649.0,96648.0,1.5021708]
[1735840392999,6.9e-07,96649.0,96648.0,1.5031708]
[1735840393197,6.9e-07,96649.0,96648.0,1.7161068]
[1735840393667,6.9e-07,96649.0,96648.0,1.82009312]
[1735840393873,6.9e-07,96649.0,96648.0,1.97009312]
[1735840399004,6.9e-07,96649.0,96648.0,1.96709312]
[1735840399430,6.9e-07,96649.0,96648.0,1.97009312]
[1735840400014,6.9e-07,96649.0,96648.0,1.96409312]
[1735840400216,6.9e-07,96649.0,96648.0,1.97209312]
[1735840400366,6.9e-07,96649.0,96648.0,1.96909312]
[1735840400750,6.9e-07,96649.0,96648.0,1.96109312]
[1735840401018,6.9e-07,96649.0,96648.0,1.97009312]
[1735840402594,6.9e-07,96649.0,96648.0,1.97609312]
[1735840403084,6.9e-07,96649.0,96648.0,1.97009312]
[1735840403292,6.9e-07,96649.0,96648.0,1.97509312]
[1735840411612,6.9e-07,96649.0,96648.0,1.82509312]
[1735840411813,0.07520069,96649.0,96648.0,1.5141708]
[1735840412242,6.9e-07,96649.0,96648.0,1.71815712]
[1735840412649,6.9e-07,96649.0,96648.0,1.71315712]
[1735840412881,6.9e-07,96649.0,96648.0,1.85715712]
[1735840413086,6.9e-07,96649.0,96648.0,1.86415712]
[1735840413321,6.9e-07,96649.0,96648.0,1.8745163]
[1735840413580,6.9e-07,96649.0,96648.0,1.8675163]
[1735840413754,6.9e-07,96649.0,96648.0,1.8735163]
[1735840414003,6.9e-07,96649.0,96648.0,1.8675163]
[1735840414307,6.9e-07,96649.0,96648.0,1.89455267]
[1735840414497,6.9e-07,96649.0,96648.0,1.88855267]
[1735840414822,6.9e-07,96649.0,96648.0,1.89555267]
[1735840415019,6.9e-07,96649.0,96648.0,1.89255267]
[1735840415458,6.9e-07,96649.0,96648.0,1.89555267]
[1735840415897,6.9e-07,96649.0,96648.0,1.89255267]
[1735840416117,6.9e-07,96649.0,96648.0,1.88555267]
[1735840416345,6.9e-07,96649.0,96648.0,1.88955267]
[1735840416568,6.9e-07,96649.0,96648.0,1.89655267]
[1735840416777,6.9e-07,96649.0,96648.0,1.88955267]
[1735840416992,6.9e-07,96649.0,96648.0,1.89755267]
[1735840418356,6.9e-07,96649.0,96648.0,1.89355267]
[1735840418578,0.08210069,96649.0,96648.0,1.86615712]
[1735840418786,0.08210069,96649.0,96648.0,1.71615712]
[1735840419251,0.13070069,96649.0,96648.0,1.71615712]
[1735840421729,6.9e-07,96649.0,96648.0,1.71615712]
[1735840422372,0.07540069,96649.0,96648.0,1.5121708]
[1735840422592,0.206953,96640.0,96628.0,0.0209517]
[1735840422812,0.330153,96640.0,96620.0,0.34603435]
[1735840423025,0.330153,96640.0,96629.0,1.5]
[1735840423656,0.1232,96640.0,96629.0,1.5]
[1735840424460,0.1232,96640.0,96639.0,0.0021708]
[1735840425060,0.1262,96640.0,96639.0,0.0021708]
[1735840428611,0.0799,96640.0,96639.0,0.10615712]
[1735840429309,0.0799,96640.0,96639.0,1.60615712]
[1735840429746,6.9e-07,96649.0,96648.0,0.306936]
[1735840429951,6.9e-07,96649.0,96648.0,0.41092232]
[1735840430859,6.9e-07,96649.0,96648.0,1.91092232]
[1735840431331,0.00500069,96649.0,96648.0,1.91092232]
[1735840431576,0.00500069,96649.0,96648.0,2.09927732]
[1735840432059,0.00500069,96649.0,96648.0,2.08539732]
[1735840432270,0.00500069,96649.0,96648.0,2.06374732]
[1735840432483,0.00500069,96649.0,96648.0,2.07391607]
[1735840432702,6.9e-07,96649.0,96648.0,2.07391607]
[1735840432905,6.9e-07,96649.0,96648.0,1.92409107]
[1735840433160,6.9e-07,96649.0,96648.0,2.07309107]
[1735840433748,6.9e-07,96649.0,96648.0,2.07109107]
[1735840434132,6.9e-07,96649.0,96648.0,2.07409107]
[1735840435575,6.9e-07,96649.0,96648.0,2.07809107]
[1735840435800,6.9e-07,96649.0,96648.0,2.07509107]
[1735840436025,6.9e-07,96649.0,96648.0,2.07109107]
[1735840436254,0.00100069,96649.0,96648.0,2.07809107]
[1735840436475,6.9e-07,96649.0,96648.0,2.07509107]
[1735840436699,0.00100069,96649.0,96648.0,2.08309107]
[1735840437194,6.9e-07,96649.0,96648.0,2.07509107]
[1735840437423,6.9e-07,96649.0,96648.0,2.28409107]
[1735840437644,0.014663,96656.0,96648.0,2.28409107]
[1735840437645,0.01383402,96656.0,96655.0,0.356921]
[1735840437866,0.01383402,96656.0,96655.0,0.46090732]
[1735840438088,0.01383402,96656.0,96655.0,1.93599932]
[1735840438291,0.01383402,96656.0,96655.0,3.33268332]
[1735840438536,0.01383402,96656.0,96655.0,2.27787432]
[1735840439012,0.01383402,96656.0,96655.0,2.28087432]
[1735840439531,0.01383402,96656.0,96655.0,1.96090732]
[1735840439787,0.01383402,96656.0,96655.0,2.15278032]
[1735840440497,0.01383402,96656.0,96655.0,2.16178032]
[1735840440967,8.54e-05,96672.0,96671.0,0.456887]
[1735840441256,8.54e-05,96672.0,96671.0,0.86767332]
[1735840441511,0.0002,96689.0,96688.0,0.45685]
[1735840441754,0.00034715,96689.0,96688.0,0.89463532]
[1735840442232,0.00034715,96689.0,96688.0,2.39463532]
[1735840443419,0.00034715,96689.0,96688.0,2.42515698]
[1735840443672,0.00034715,96689.0,96688.0,2.41286898]
[1735840443902,0.00034715,96689.0,96688.0,2.16748232]
[1735840444141,0.00034715,96689.0,96688.0,2.06583632]
[1735840444277,0.00034715,96689.0,96688.0,2.07183632]
[1735840444972,0.00034715,96689.0,96688.0,2.07383632]
[1735840445174,0.00034715,96689.0,96688.0,1.92383632]
[1735840445449,0.12694715,96689.0,96688.0,0.011]
[1735840445691,0.07314715,96689.0,96688.0,0.003]
[1735840445947,0.05014715,96689.0,96688.0,0.003]
[1735840446469,0.13064715,96689.0,96688.0,0.003]
[1735840446935,0.13064715,96689.0,96688.0,0.009]
[1735840447184,0.13064715,96689.0,96688.0,0.003]
[1735840447663,0.13064715,96689.0,96688.0,1.5]
[1735840448104,0.13464715,96689.0,96688.0,1.5]
[1735840448568,0.13064715,96689.0,96688.0,1.5]
[1735840448694,0.13064715,96689.0,96688.0,1.501]
[1735840449138,0.15364715,96689.0,96688.0,0.001]
[1735840449356,0.15831179,96689.0,96688.0,0.001]
[1735840449604,0.15831179,96689.0,96667.0,0.15]
[1735840449605,0.0774,96686.0,96668.0,1.913786]
[1735840449823,0.206857,96685.0,96672.0,0.206883]
[1735840450056,0.0774,96686.0,96677.0,0.206873]
[1735840450277,0.00466295,96684.0,96677.0,0.206873]
[1735840450499,0.0774,96686.0,96677.0,0.413746]
[1735840450726,0.00463767,96683.0,96677.0,0.413746]
[1735840451001,0.007,96685.0,96673.0,0.206881]
[1735840451240,0.00463622,96684.0,96673.0,0.206881]
[1735840451474,0.00463622,96684.0,96678.0,0.206871]
[1735840451705,0.01163622,96684.0,96678.0,0.206871]
[1735840451933,0.007,96684.0,96678.0,0.206871]
[1735840452154,0.00463542,96683.0,96678.0,0.206871]
[1735840452358,0.007,96684.0,96678.0,0.206871]
[1735840452583,0.00463128,96683.0,96678.0,0.206871]
[1735840452786,0.005,96684.0,96678.0,0.206871]
[1735840453601,0.00463075,96683.0,96678.0,0.207871]
[1735840453826,0.014,96684.0,96680.0,0.206868]
[1735840454029,0.0774,96686.0,96685.0,0.206857]
[1735840454491,0.0774,96686.0,96685.0,1.706857]
[1735840455022,0.0774,96686.0,96685.0,1.91084332]
[1735840455596,0.0784,96686.0,96685.0,1.91084332]
[1735840456640,0.0814,96686.0,96685.0,1.91084332]
[1735840456867,0.0784,96686.0,96685.0,1.91084332]
[1735840457078,0.0774,96686.0,96685.0,1.6]
[1735840457333,0.0794,96686.0,96685.0,1.5]
[1735840457552,0.0794,96686.0,96676.0,0.206876]
[1735840457764,0.0794,96686.0,96679.0,0.206868]
[1735840457972,0.0774,96686.0,96680.0,1.5]
[1735840458391,0.0774,96686.0,96682.0,0.206862]
[1735840458830,0.0774,96686.0,96685.0,0.206857]
[1735840459040,0.00043255,96689.0,96685.0,0.10398632]
[1735840459256,0.00043255,96689.0,96684.0,0.1]
[1735840459257,0.00043255,96689.0,96688.0,0.35685]
[1735840459464,0.00043255,96689.0,96688.0,0.46083632]
[1735840459671,0.00043255,96689.0,96688.0,1.96083632]
[1735840461388,0.00043255,96689.0,96688.0,1.96183632]
[1735840461814,0.00043255,96689.0,96688.0,2.73257732]
[1735840462035,0.00043255,96689.0,96688.0,2.33927032]
[1735840462261,0.00043255,96689.0,96688.0,2.34127032]
[1735840462696,0.00043255,96689.0,96688.0,1.96283632]
[1735840462904,0.00043255,96689.0,96688.0,2.15490932]
[1735840463112,0.00043255,96689.0,96688.0,2.15090932]
[1735840463319,0.00043255,96689.0,96688.0,2.15290932]
[1735840463521,0.00043255,96689.0,96688.0,2.10004732]
[1735840463983,0.00043255,96689.0,96688.0,1.96783632]
[1735840464186,0.00043255,96689.0,96688.0,1.96083632]
[1735840464391,0.00043255,96689.0,96688.0,2.12882232]
[1735840464600,0.00043255,96689.0,96688.0,2.09675932]
[1735840464804,0.00043255,96689.0,96688.0,1.96683632]
[1735840465735,0.00043255,96689.0,96688.0,0.46683632]
[1735840466377,0.00043255,96689.0,96688.0,1.96683632]
[1735840467409,0.00043255,96689.0,96688.0,2.14367732]
[1735840467631,0.00043255,96689.0,96688.0,2.09652832]
[1735840469446,0.00043255,96689.0,96688.0,1.96683632]
[1735840469786,0.00043255,96689.0,96688.0,2.07901632]
[1735840470810,0.00043255,96689.0,96688.0,1.96683632]
[1735840471012,0.08253255,96689.0,96688.0,1.96683632]
[1735840471220,0.12833255,96689.0,96688.0,1.506]
[1735840471460,0.33518055,96689.0,96688.0,1.506]
[1735840471647,0.33985628,96689.0,96688.0,1.506]
[1735840472275,0.33985628,96689.0,96688.0,0.006]
[1735840472478,0.33985628,96689.0,96688.0,0.004]
[1735840472692,0.20685,96688.0,96682.0,0.0001708]
[1735840473116,0.00465012,96687.0,96682.0,0.0001708]
[1735840473366,0.41371,96686.0,96682.0,0.0001708]
[1735840473779,0.206859,96684.0,96682.0,0.0001708]
[1735840474197,0.087525,96683.0,96682.0,0.0011708]
[1735840474603,0.087525,96683.0,96682.0,0.0001708]
[1735840476127,0.087525,96683.0,96682.0,0.0011708]
[1735840476322,0.087525,96683.0,96682.0,0.0001708]
[1735840476705,0.097525,96683.0,96682.0,0.0011708]
[1735840477357,0.094525,96683.0,96682.0,0.0011708]
[1735840477661,0.087525,96683.0,96682.0,0.0001708]
[1735840477865,0.095525,96683.0,96682.0,0.0011708]
[1735840478462,0.37111132,96683.0,96682.0,0.0011708]
[1735840478618,0.1508,96674.0,96655.0,0.0001708]
[1735840479040,0.206885,96672.0,96655.0,0.0001708]
[1735840479244,0.206911,96660.0,96655.0,0.0001708]
[1735840479454,0.206906,96662.0,96655.0,0.0001708]
[1735840480724,0.206906,96662.0,96655.0,0.0011708]
[1735840481209,0.206906,96662.0,96655.0,0.0001708]
[1735840481653,0.206906,96662.0,96661.0,1.5]
[1735840483040,0.283606,96662.0,96661.0,1.5]
[1735840483238,0.294606,96662.0,96661.0,0.001]
[1735840483880,0.30510829,96662.0,96661.0,0.001]
[1735840484029,0.294606,96662.0,96661.0,0.001]
[1735840485254,0.466806,96662.0,96661.0,0.001]
[1735840486902,0.343806,96662.0,96661.0,0.001]
[1735840487099,0.1369,96662.0,96661.0,0.001]
[1735840487369,0.0877,96662.0,96655.0,0.0001708]
[1735840487594,0.0877,96662.0,96658.0,1.5]
[1735840488402,0.0877,96662.0,96661.0,0.0001708]
[1735840488806,0.0847,96662.0,96661.0,0.0001708]
[1735840489222,0.0797,96662.0,96661.0,0.0001708]
[1735840489563,0.0877,96662.0,96661.0,0.0001708]
[1735840489808,0.0767,96662.0,96661.0,0.0001708]
[1735840490061,0.0797,96662.0,96661.0,0.0001708]
[1735840490315,0.0877,96662.0,96661.0,0.0011708]
[1735840490826,0.294606,96662.0,96661.0,0.0011708]
[1735840491078,0.0877,96662.0,96661.0,0.0011708]
[1735840492095,0.011,96662.0,96661.0,0.10515712]
[1735840492923,0.003,96662.0,96661.0,0.10415712]
[1735840493183,0.011,96662.0,96661.0,0.10515712]
[1735840493459,0.008,96662.0,96661.0,0.10415712]
[1735840493895,0.018,96662.0,96661.0,0.0011708]
[1735840494103,0.018,96662.0,96661.0,0.0001708]
[1735840494104,0.0827,96662.0,96661.0,0.0001708]
[1735840495393,0.0897,96662.0,96661.0,0.0011708]
[1735840495607,0.1127,96662.0,96661.0,0.0011708]
[1735840495784,0.1097,96662.0,96661.0,0.0001708]
[1735840496012,0.1187,96662.0,96661.0,0.0011708]
[1735840496451,0.0937,96662.0,96661.0,0.0011708]
[1735840496904,0.0957,96662.0,96661.0,0.0011708]
[1735840497134,0.016,96662.0,96661.0,0.10515712]
[1735840498312,0.014,96662.0,96661.0,0.10515712]
[1735840498539,0.002,96662.0,96661.0,0.10415712]
[1735840498765,0.002,96662.0,96661.0,0.10515712]
[1735840499002,0.007,96662.0,96661.0,0.10515712]
[1735840499235,0.0756,96671.0,96662.0,0.206906]
[1735840499373,0.0756,96671.0,96663.0,0.10398632]
[1735840499616,0.0756,96671.0,96663.0,0.51779432]
[1735840500021,0.0756,96671.0,96666.0,0.206896]
[1735840500659,0.0786,96671.0,96666.0,0.206896]
[1735840500874,0.0786,96671.0,96663.0,0.31089032]
[1735840501463,0.003,96671.0,96666.0,0.206896]
[1735840501658,0.20687,96679.0,96668.0,0.206893]
[1735840501864,0.1,96703.0,96661.0,0.01125661]
[1735840501865,0.07813255,96689.0,96676.0,0.1]
[1735840502093,0.07813255,96689.0,96677.0,0.31086032]
[1735840502295,0.07813255,96689.0,96677.0,0.10398632]
[1735840502508,0.00043255,96689.0,96687.0,0.306853]
[1735840502761,0.00043255,96689.0,96687.0,0.41083932]
[1735840503714,0.00043255,96689.0,96687.0,0.20398632]
[1735840503919,0.0020854,96688.0,96687.0,1.70398632]
[1735840504968,0.0110854,96688.0,96687.0,1.84707932]
[1735840505149,0.0090854,96688.0,96687.0,1.88860232]
[1735840505303,0.0090854,96688.0,96687.0,1.70398632]
[1735840505709,0.0090854,96688.0,96687.0,0.1]
[1735840505967,0.0090854,96688.0,96687.0,0.10398632]
[1735840506189,8.54e-05,96688.0,96687.0,0.31183932]
[1735840506386,8.54e-05,96688.0,96687.0,1.70498632]
[1735840506594,0.0010854,96688.0,96687.0,0.001]
[1735840506796,0.0010854,96688.0,96679.0,0.22713985]
[1735840506999,0.0010854,96688.0,96681.0,0.206865]
[1735840507326,8.54e-05,96688.0,96683.0,0.413722]
[1735840507529,8.54e-05,96688.0,96683.0,0.51770832]
[1735840507731,8.54e-05,96688.0,96683.0,0.31084732]
[1735840507939,8.54e-05,96688.0,96687.0,0.002]
[1735840508146,8.54e-05,96688.0,96687.0,0.10698632]
[1735840508401,8.54e-05,96688.0,96687.0,0.45698632]
[1735840508636,8.54e-05,96688.0,96687.0,1.17525332]
[1735840509115,8.54e-05,96688.0,96687.0,1.14327732]
[1735840509352,8.54e-05,96688.0,96687.0,1.03567132]
[1735840509595,8.54e-05,96688.0,96687.0,0.89245632]
[1735840509832,4e-07,96688.0,96687.0,1.09345632]
[1735840510085,8.53e-05,96706.0,96705.0,0.35]
[1735840510339,8.53e-05,96706.0,96705.0,0.86740032]
[1735840510596,8.53e-05,96706.0,96705.0,1.35004132]
[1735840510858,8.53e-05,96706.0,96705.0,1.32849132]
[1735840512699,8.53e-05,96706.0,96705.0,1.22849132]
[1735840512924,0.0010853,96706.0,96705.0,1.35861416]
[1735840513152,8.53e-05,96706.0,96705.0,1.31373803]
[1735840513380,8.53e-05,96706.0,96705.0,1.20401903]
[1735840513613,0.0010853,96706.0,96705.0,1.18189903]
[1735840513856,0.0010853,96706.0,96705.0,2.67389903]
[1735840514088,0.0020853,96706.0,96705.0,2.68289903]
[1735840514326,0.0020853,96706.0,96705.0,2.37308503]
[1735840514549,0.0020853,96706.0,96705.0,0.38410916]
[1735840515028,0.0020853,96706.0,96705.0,2.04218716]
[1735840515226,0.0020853,96706.0,96705.0,2.04618716]
[1735840515716,0.0020853,96706.0,96705.0,2.04218716]
[1735840515949,8.53e-05,96706.0,96705.0,2.03318716]
[1735840516180,0.0768853,96706.0,96703.0,0.01039333]
[1735840516377,0.0768853,96706.0,96705.0,0.002]
[1735840516610,0.005568,96705.0,96699.0,0.15]
[1735840516838,0.0768853,96706.0,96705.0,0.004]
[1735840517077,8.53e-05,96706.0,96705.0,0.10398632]
[1735840517555,8.53e-05,96706.0,96705.0,1.60398632]
[1735840517822,0.1323853,96706.0,96705.0,0.002]
[1735840518312,0.206814,96705.0,96694.0,0.15]
[1735840518560,8.53e-05,96706.0,96703.0,0.1]
[1735840518836,8.53e-05,96706.0,96704.0,0.81616632]
[1735840519089,8.53e-05,96706.0,96705.0,0.56218]
[1735840519346,8.53e-05,96706.0,96705.0,0.65216632]
[1735840519573,8.53e-05,96706.0,96705.0,0.66718332]
[1735840519838,8.53e-05,96706.0,96705.0,0.41620632]
[1735840520094,8.53e-05,96706.0,96694.0,0.206837]
[1735840520095,0.0785853,96706.0,96691.0,0.36724046]
[1735840520346,0.413628,96705.0,96692.0,0.29498732]
[1735840520598,0.206814,96705.0,96694.0,0.002]
[1735840520840,0.206828,96699.0,96695.0,0.10398632]
[1735840521081,0.206865,96681.0,96670.0,0.1]
[1735840521273,0.206865,96681.0,96666.0,0.206897]
[1735840521274,0.206906,96663.0,96658.0,0.1]
[1735840521596,0.206906,96663.0,96662.0,0.10398632]
[1735840521846,0.2069,96665.0,96662.0,0.10398632]
[1735840522310,0.206893,96669.0,96662.0,0.10398632]
[1735840523050,0.001,96663.0,96662.0,0.11198632]
[1735840523244,0.206899,96666.0,96662.0,0.10398632]
[1735840523408,0.206899,96666.0,96662.0,0.10498632]
[1735840523736,0.206899,96666.0,96662.0,0.10398632]
[1735840524001,0.206899,96666.0,96663.0,1.5]
[1735840524229,0.413798,96666.0,96664.0,0.10398632]
[1735840524659,0.0058547,96665.0,96664.0,0.10398632]
[1735840524848,0.0058547,96665.0,96664.0,1.60398632]
[1735840525701,0.214899,96666.0,96664.0,1.60498632]
[1735840525902,0.00585295,96665.0,96664.0,0.10398632]
[1735840526144,0.413804,96664.0,96661.0,0.00031795]
[1735840526354,0.413804,96664.0,96663.0,1.5]
[1735840526548,0.206906,96662.0,96661.0,0.00031795]
[1735840527002,0.212765,96662.0,96661.0,0.00031795]
[1735840527528,0.235765,96662.0,96661.0,0.00031795]
[1735840527697,0.467365,96662.0,96661.0,0.00031795]
[1735840527895,0.407119,96656.0,96655.0,0.0001708]
[1735840528370,0.41293137,96656.0,96655.0,0.0001708]
[1735840529227,0.41393137,96656.0,96655.0,0.0001708]
[1735840529434,0.41293137,96656.0,96655.0,0.0001708]
[1735840529790,0.41793137,96656.0,96655.0,0.0001708]
[1735840530011,0.283653,96640.0,96612.0,0.21741147]
[1735840530241,0.283653,96640.0,96639.0,0.00031809]
[1735840530436,0.28946365,96640.0,96639.0,0.00031809]
[1735840530691,0.31246365,96640.0,96639.0,0.00031809]
[1735840531529,0.31546365,96640.0,96639.0,0.00031809]
[1735840532787,0.29246365,96640.0,96639.0,0.00031809]
[1735840533007,0.08551065,96640.0,96639.0,0.10430441]
[1735840533230,0.00981065,96640.0,96639.0,0.20430441]
[1735840533459,0.206921,96655.0,96639.0,0.20430441]
[1735840533668,0.0751,96664.0,96651.0,0.1]
[1735840533874,0.00478695,96654.0,96652.0,0.52891932]
[1735840534086,0.00478695,96654.0,96652.0,0.31091332]
[1735840534297,0.00478695,96654.0,96653.0,1.647026]
[1735840534499,0.29852801,96667.0,96653.0,1.75101232]
[1735840534717,0.29852801,96667.0,96654.0,0.10398632]
[1735840534718,0.004,96655.0,96654.0,0.10398632]
[1735840534931,0.206905,96663.0,96653.0,0.10398632]
[1735840534932,0.206923,96654.0,96653.0,0.10398632]
[1735840535140,0.20688,96674.0,96653.0,1.60398632]
[1735840535363,0.1,96685.0,96657.0,0.1]
[1735840535588,0.206905,96663.0,96658.0,0.10398632]
[1735840535783,0.206895,96667.0,96658.0,0.10398632]
[1735840536021,0.206895,96667.0,96659.0,1.5]
[1735840536329,0.206895,96667.0,96660.0,0.10398632]
[1735840536763,0.412791,96667.0,96660.0,0.10398632]
[1735840537696,0.206905,96663.0,96645.0,0.15]
[1735840537921,0.206905,96663.0,96660.0,0.001]
[1735840538115,0.206906,96662.0,96660.0,0.001]
[1735840538523,0.206898,96666.0,96660.0,0.10498632]
[1735840538722,0.206894,96668.0,96660.0,0.10398632]
[1735840538923,0.003,96663.0,96660.0,0.10398632]
[1735840539164,0.011,96663.0,96660.0,0.10498632]
[1735840539824,0.011,96663.0,96661.0,0.31089432]
[1735840540121,0.011,96663.0,96662.0,0.222997]
[1735840540328,0.011,96663.0,96662.0,0.32698332]
[1735840540497,0.206857,96685.0,96668.0,0.206893]
[1735840540666,0.206866,96681.0,96669.0,0.10398632]
[1735840540865,0.00478112,96680.0,96669.0,0.10398632]
[1735840541112,0.20687,96679.0,96669.0,0.10398632]
[1735840541413,0.206872,96678.0,96669.0,0.10398632]
[1735840541585,0.413745,96678.0,96669.0,0.10398632]
[1735840541914,0.00478145,96677.0,96669.0,0.10398632]
[1735840542044,0.206876,96676.0,96669.0,0.10398632]
[1735840542251,0.20701901,96678.0,96669.0,0.10398632]
[1735840542252,0.00478564,96675.0,96669.0,0.10398632]
[1735840542454,0.00014701,96678.0,96669.0,0.10398632]
[1735840542664,0.00478707,96677.0,96669.0,0.10398632]
[1735840543070,0.00478707,96677.0,96671.0,0.206887]
[1735840543273,0.00478707,96677.0,96672.0,0.10398632]
[1735840543475,0.00014701,96678.0,96673.0,0.206882]
[1735840543691,0.00014701,96678.0,96675.0,0.413756]
[1735840543898,0.00014701,96678.0,96677.0,1.5]
[1735840544103,0.00031801,96678.0,96677.0,1.60398632]
[1735840544746,0.0783,96677.0,96651.0,0.3067]
[1735840544943,0.023,96675.0,96652.0,0.10398632]
[1735840545147,0.123,96675.0,96651.0,0.31068632]
[1735840545358,0.0783,96652.0,96651.0,0.46068632]
[1735840545558,0.0783,96661.0,96651.0,0.46068632]
[1735840545762,0.413836,96657.0,96651.0,0.25398632]
[1735840546218,0.206921,96655.0,96651.0,0.25398632]
[1735840546864,0.00488222,96654.0,96651.0,0.25498632]
[1735840547399,0.00484123,96653.0,96652.0,1.5]
[1735840547719,0.206921,96655.0,96652.0,1.5]
[1735840548142,0.206914,96659.0,96652.0,1.5]
[1735840548538,0.206917,96657.0,96652.0,1.5]
[1735840548738,0.206917,96657.0,96652.0,1.501]
[1735840548967,0.206921,96655.0,96652.0,1.501]
[1735840549396,0.413843,96655.0,96652.0,1.501]
[1735840549769,0.206925,96653.0,96652.0,1.501]
[1735840550281,0.21175045,96653.0,96652.0,0.001]
[1735840550498,0.25905045,96653.0,96652.0,0.001]
[1735840550698,0.35805045,96653.0,96652.0,0.001]
[1735840550907,0.206953,96640.0,96639.0,0.0001708]
[1735840551360,0.21176254,96640.0,96639.0,0.0001708]
[1735840551580,0.00480954,96640.0,96639.0,0.0001708]
[1735840551816,0.206948,96643.0,96639.0,0.0001708]
[1735840552137,0.413896,96643.0,96639.0,0.00031809]
[1735840552968,0.002,96640.0,96639.0,0.00031809]
[1735840553368,0.413896,96643.0,96639.0,0.00031809]
[1735840553590,0.001,96640.0,96639.0,0.00031809]
[1735840554179,0.002,96640.0,96639.0,0.00031809]
[1735840556057,0.002,96640.0,96639.0,0.10430441]
[1735840556464,0.003,96640.0,96639.0,1.60430441]
[1735840558925,0.003,96640.0,96639.0,1.50031809]
[1735840562091,0.003,96640.0,96639.0,0.00031809]
[1735840562857,0.0817,96640.0,96639.0,0.00031809]
[1735840564259,0.1299,96640.0,96639.0,0.00031809]
[1735840564680,0.64729,96640.0,96639.0,0.00031809]
[1735840565344,0.77029,96640.0,96639.0,0.00031809]
[1735840566455,0.207028,96605.0,96604.0,0.0001708]
[1735840567725,0.20717485,96605.0,96604.0,0.0001708]
[1735840568353,0.20917485,96605.0,96604.0,0.0001708]
[1735840568766,0.00214685,96605.0,96604.0,0.10415712]
[1735840569181,0.00214685,96605.0,96604.0,0.97186012]
[1735840569387,0.00014685,96605.0,96604.0,0.97186012]
[1735840569602,0.00714685,96605.0,96604.0,2.47286012]
[1735840570218,0.00014685,96605.0,96604.0,2.38781012]
[1735840570837,0.00414685,96605.0,96604.0,2.16947912]
[1735840571034,0.00414685,96605.0,96604.0,1.92551512]
[1735840571554,0.00414685,96605.0,96604.0,1.75515712]
[1735840571975,0.00414685,96605.0,96604.0,1.88519212]
[1735840572181,0.00014685,96605.0,96604.0,1.88519212]
[1735840572414,0.00014685,96605.0,96604.0,1.88619212]
[1735840572559,0.00014685,96605.0,96604.0,1.88519212]
[1735840572775,0.00014685,96605.0,96604.0,1.75515712]
[1735840572979,0.00014685,96605.0,96604.0,1.75415712]
[1735840573542,0.00014685,96605.0,96604.0,1.75515712]
[1735840574037,0.00114685,96605.0,96604.0,1.75515712]
[1735840574226,0.00114685,96605.0,96604.0,1.75415712]
[1735840574423,0.00114685,96605.0,96604.0,1.75515712]
[1735840575488,0.00114685,96605.0,96604.0,1.5011708]
[1735840575703,0.08144685,96605.0,96604.0,0.0001708]
[1735840576118,0.08144685,96605.0,96604.0,0.0011708]
[1735840576326,0.00014685,96605.0,96604.0,0.0021708]
[1735840576549,0.00014685,96605.0,96604.0,0.0001708]